Workbook

Sheet Enter Parameters and See Result
A1: TPS53632 Design Procedure with DCR Sensing Temperature Compensation
A3: INSTRUCTIONS
A4: 1. When you open this file Click on 'Enable Macros' when the prompt appears
A5: 2. This Program has a Macro to calculate an optimized set of DCR sense component values.
A6: 3. You need the Excel Add-in "Solver" to use this Program. Go to Tools -> Add-in. Check the box "Solver" and "Analysis Tool-pak'
A7: 4. Enter the parameters in Green Cells
A8: 5. DO NOT CHANGE ANY CELLS OTHER THAN GREEN CELLS
A9: 6. The Program automatically selects the TRIPSEL selection
A10: 7. Run the Macro (By pressing CTRL+q) for correct DCR sense values. The DCR sense and some of the results will update only after running the macro. | L10: LOADLINE vs Temperature
A11: 8. Use the 'PASS' / 'FAIL' criteria as a guideline only. Judgement should be made based on actual numbers.
A12: 9. When you get an 'ERROR!' in the results, the input parameters must be adjusted to get a correct result.
A13: 10. The Bode Plot at the end is based on Linearized model and is valid only << switching frequency.
A15: Enter the parameters in Green Cells | G15: RUN MACRO (CTRL+q) for Correct DCR sense values
A16: DO NOT CHANGE any other cells | G16: CPU
G17: Rsequ | H17: ='DCR sense calculations'!$D$10/1000 -> 1.408447151 | I17: kW
A18: Processor Requirements | G18: Rseries | H18: ='DCR sense calculations'!$D$11/1000 -> 1.72772005 | I18: kW
G19: Rpar | H19: =IF(('DCR sense calculations'!$D$12/1000)<(15*RNTC_25C),'DCR sense calculations'!$D$12/1000,"OPEN") -> OPEN | I19: kW
A20: Number of phases | B20: 2 | G20: Csense | H20: ='DCR sense calculations'!$D$15/0.000000001 -> 603.3081671 | I20: nF
A21: Output Voltage | B21: 0.9 | D21: V | G21: Divider Ratio | H21: =Rcs_eff/L_DCR -> 0.8845427948 | I21: If Divide Ratio is lower than 0.75, try increasing OCL and run macro again.
A22: R_Loadline (DC Loadline) | B22: 2 | D22: mV/A | G22: TEMP COMPENSATION | H22: =IF(('DCR sense calculations'!I6<0.00001)*AND('DCR sense calculations'!I14<4),"PASS","FAIL") -> PASS
A23: Maximum Current (Icc_max) | B23: 41 | D23: A
A24: Per phase Maximum Current | B24: =Icc_max/N_ph -> 20.5 | D24: A
A25: Thermal Design Current (I_TDC_total) | B25: 35 | D25: A
A26: Per phase Thermal Design Current | B26: =I_TDC/N_ph -> 17.5 | D26: A
A27: Slew Rate | B27: 24 | D27: mV/ms
A28: PMBus Address | B28: 0
L32: CPU-Vcore OVER-CURRENT LIMIT Vs Temperature
A33: System Requirements
A34: Vin max | B34: 14 | D34: V | G34: Pin 1, 31 | J34: I2C lines. Pull-up to I2C Interface voltage through 1k resistor
G35: Pin 2 (VDD) to GND | H35: 1 | I35: mF | J35: 3.3V supply by-pass capacitor
A36: Vin_min | B36: 10 | D36: V | G36: Pin 3 PGOOD | J36: PGOOD need external pull-up
G37: Pin 4,5,6 (CPWM1-CPWM3) | J37: PWM outputs,
G38: Pin 4 to GND | H38: open | I38: kW
A39: Freq | B39: 600 | D39: kHz | G39: Pin 7 (SKIP) | J39: Connect to driver
G40: Pin 8 | J40: VR_ON logic
G41: Pin 9 (PU) to GND | H41: 150 | I41: kW
G42: Pin 9 (PU) to VREF | H42: 9.31 | I42: kW
G43: Pin 10 (F-IMAX) to GND | H43: =VLOOKUP(Freq,B128:C135,2,FALSE) -> 39 | I43: kW | J43: Selects the Switching Frequency
G44: Pin 10 (F-IMAX) to VREF | H44: =H43*(1-(Icc_max/255))/(Icc_max/255) -> 203.5609756 | I44: kW | J44: Sets the Icc_max
G45: Pin 11 (B-RAMP) to GND | H45: =VLOOKUP(B98,P109:Q112,2) -> 150 | I45: kW | J45: Ramp setting
G46: Pin 11 (B-RAMP) to VREF | H46: open | I46: kW | J46: For now, set the BOOT to OTP BOOT
G47: Pin 12 (COCP-I) to GND | H47: ='Intermediate Calculations'!B18 -> 24 | I47: kW | J47: Selects the OCP level for CPU-Vcore
G48: Pin 13 (CIMON) to COCP-I | H48: =H47*((V_IMON/(10*Icc_max*Rcs_eff*0.001)-1)) -> 363.9354424 | I48: kW | J48: Sets IMON voltage for CPU-Vcore on CIMON pin
G49: Pin 14 THERM to GND | H49: =(V_THRMSD)/((VREF-V_THRMSD)/(VLOOKUP(TEMP_SD,C115:D125,2,FALSE))) -> 8.961586414 | I49: kW | J49: Sets the Thermal Shutdown Level for CPU-Vcore
G50: Pin 14 THERM to VREF | H50: 100 | I50: kW | J50: NTC for VR_HOT flag and Thermal Shutdown.
G51: Pin 15 (SLEWA) to GND | H51: =VLOOKUP(Slew_rate,H114:I121,2,FALSE) -> 39 | I51: kW | J51: This resistor sets the SLEW rate
G52: Pin 15 (SLEWA) to VREF | H52: =VLOOKUP(PM_address,K108:M115,3) -> open | I52: kW | J52: DNP for default I2C device address (0100 0000b)
G53: Pin 16 (VBAT) | J53: Connect to Converter Input Voltage, VIN (VBAT)
G54: Pin 17 to Pin 22(CCSP-N) | J54: See DCR sensing for CPU
G55: Pin 23, Pin 24 | J55: Voltage sense Feedback, CPU
G56: Pin 25-26 (DROOP to COMP) | H56: 4.02 | I56: kW | J56: FIX first. Adjust as needed for compensation
G57: Pin 25-26 (DROOP to COMP) | H57: 10pF | J57: FIX first. Adjust as needed for compensation
A58: Inductor | G58: Pin 26-27 (COMP) to VREF | H58: =H56/(Droop_Gain-1) -> 14.22570484 | I58: kW | J58: FIX first. Adjust as needed for compensation
A59: Minimum Recommended Inductance | B59: =((Vin_max-Vcore_HFM)*(Vcore_HFM/(Freq*1000*Vin_max))/(0.4*Icc_max_N))*1000000 -> 0.1711672474 | D59: mH | E59: DO NOT CHANGE | G59: Pin 27 (VREF) to Pin 29 (GND) | H59: 0.33 | I59: mF | J59: VREF to Analog Ground By-pass capacitor
G60: Pin 28 (V5) to Pin 29 (GND) | H60: 1 | I60: mF | J60: V5 to Analog Ground by-pass cap
A61: Maximum Recommended Inductance | B61: =((Vin_max-Vcore_HFM)*(Vcore_HFM/(Freq*1000*Vin_max))/(0.2*Icc_max_N))*1000000 -> 0.3423344948 | D61: mH | G61: Pin 30, 32 | H61: open | J61: No connect pins
A62: Chosen Inductance, L | B62: 0.22 | D62: mH | E62: =IF(AND(L_min<=L_chosen,L_chosen<=L_max),"PASS","FAIL") -> PASS
A63: Inductor DCR, L_DCR | B63: 0.29 | D63: mW | E63: =IF(DCR_Ploss<DCR_Pmax,"PASS","FAIL, DCR too high") -> PASS
A65: Bulk Capacitor
A66: Output Capacitor, Bulk | B66: 330 | D66: mF
A67: Ceramic (account for DC voltage factor) | B67: 15 | D67: mF
A68: ESR of Bulk Output capacitor | B68: 9 | D68: mW
A69: Total No. of ceramic Capacitors | B69: 16
A70: Total No. of Bulk Capacitors | B70: 2
A71: ESL of Bulk Capacitor | B71: 1 | D71: nH
A73: DCR power loss
A74: Max. allowed DCR power loss | B74: =0.03*Vcore_HFM*I_TDC/N_ph -> 0.4725 | D74: W | E74: DO NOT CHANGE
A75: DCR Power loss (TDC) | B75: =I_TDC_N^2*(1.4*L_DCR/1000) -> 0.1243375 | D75: W
A78: DCR Temperature Compensation
A79: B value of DCR thermal compensation NTC | B79: 3380 | D79: K
A80: Resistance of NTC at 25C | B80: 10 | D80: kW
A81: TCR_cu | B81: 0.0039 | D81: ppm/C | E81: DO NOT CHANGE
A84: Over Current Limit (TRIPSEL)
A85: Min. Over Current Limit (OCL) Target | B85: 50 | D85: A
A88: Thermal Shutdown
A89: IMVP-7 Thermal Shutdown voltage (Voltage at which VR_HOT is active) | B89: 105 | D89: oC
A90: Resistance of Thermal Shutdown NTC at 25C | B90: 100 | D90: kW
A91: B value of Thermal shutdown NTC | B91: 4250
G92: R_sequ | H92: =H17 -> 1.408447151 | I92: kW | J92: CPU-Vcore Current sensing parts. For C_sense, use the next higher available standard value but make sure it is not too high.
G93: R_series (with NTC) | H93: =H18 -> 1.72772005 | I93: kW
A94: Current Monitor (IMON) | G94: R_NTC | H94: =RNTC_25C -> 10 | I94: kW
A95: IMON voltage at Icc_max | B95: 1.7 | D95: V | G95: R_par | H95: =H19 -> OPEN | I95: kW
G96: C_sense | H96: =H20 -> 603.3081671 | I96: nF
A97: RAMP
A98: Ramp amplitude | B98: 40 | D98: mV
C105: 25 | D105: =RNTC_25C_TH -> 100 | E105: =RNTC_25C_TH_G -> 0
C106: 30 | D106: =D105/(EXP(B_NTC_TH*(C106-C105)/((C106+273)*(C105+273)))) -> 79.03002628 | E106: =E105/(EXP(B_NTC_TH_G*(C106-C105)/((C106+273)*(C105+273)))) -> 0 | K106: PMBus
C107: 35 | D107: 62.9365149 | E107: 0 | P107: Ramp
C108: 40 | D108: 50.48619739 | E108: 0 | K108: 0 | L108: 0 | M108: open
C109: 45 | D109: 40.78054354 | E109: 0 | K109: 1 | L109: 0.4 | M109: =(1.7*H51-H51*L109)/L109 -> 126.75 | P109: 40 | Q109: 150
C110: 50 | D110: 33.15919177 | E110: 0 | K110: 2 | L110: 0.6 | M110: =(1.7*H51-H51*L110)/L110 -> 71.5 | P110: 60 | Q110: 30
C111: 55 | D111: 27.13277191 | E111: 0 | K111: 3 | L111: 0.8 | M111: =(1.7*H51-H51*L111)/L111 -> 43.875 | P111: 120 | Q111: 56
C112: 60 | D112: 22.33573768 | E112: 0 | K112: 4 | L112: 1 | M112: =(1.7*H51-H51*L112)/L112 -> 27.3 | P112: 160 | Q112: 100
C113: 65 | D113: 18.49295256 | E113: 0 | K113: 5 | L113: 1.2 | M113: =(1.7*H51-H51*L113)/L113 -> 16.25
C114: 70 | D114: 15.39581584 | E114: 0 | H114: 6 | I114: 20 | K114: 6 | L114: 1.4 | M114: =(1.7*H51-H51*L114)/L114 -> 8.357142857
C115: 75 | D115: 12.88506512 | E115: 0 | H115: 12 | I115: 24 | K115: 7 | L115: 1.6 | M115: =(1.7*H51-H51*L115)/L115 -> 2.4375
C116: 80 | D116: 10.83829045 | E116: 0 | H116: 18 | I116: 30
C117: 85 | D117: 9.160800809 | E117: 0 | H117: 24 | I117: 39
C118: 90 | D118: 7.778894245 | E118: 0 | H118: 30 | I118: 56
C119: 95 | D119: 6.634864616 | E119: 0 | H119: 36 | I119: 75
C120: 100 | D120: 5.683271847 | E120: 0 | H120: 42 | I120: 100
C121: 105 | D121: 4.888138044 | E121: 0 | H121: 48 | I121: >=150
C122: 110 | D122: 4.220826507 | E122: 0
C123: 115 | D123: 3.658427707 | E123: 0
C124: 120 | D124: 3.182523971 | E124: 0 | G124: YES
C125: 125 | D125: 2.778238738 | E125: 0 | G125: NO
B127: Freq | D127: Ramp | G127: OSR | J127: USR
B128: 300 | C128: 20 | D128: 20 | E128: 20 | G128: Level 1 | H128: 20 | I128: 1 | J128: Level 1 | K128: 0.2
B129: 400 | C129: 24 | D129: Dynamic | E129: 24 | G129: Level 2 | H129: 24 | I129: 2 | J129: Level 2 | K129: 0.4
B130: 500 | C130: 30 | D130: 60 | E130: 30 | G130: Level 3 | H130: 30 | I130: 3 | J130: Level 3 | K130: 0.6
B131: 600 | C131: 39 | D131: 100 | E131: 39 | G131: Level 4 | H131: 39 | J131: Level 4 | K131: 0.8
B132: 700 | C132: 56 | D132: 120 | E132: 56 | G132: Level 5 | H132: 56 | J132: Level 5 | K132: 1
B133: 800 | C133: 75 | D133: 140 | E133: 75 | G133: Level 6 | H133: 75 | J133: Level 6 | K133: 1.2
B134: 900 | C134: 100 | D134: 160 | E134: 100 | G134: Level 7 | H134: 100 | J134: Level 7 | K134: 1.4
B135: 1000 | C135: 150 | D135: Internal | E135: 150 | G135: Level 8 | H135: 150 | J135: Level 8 | K135: 1.6

Sheet Intermediate Calculations
A1: Intermediate Calculations
B3: CPU
A4: System
A5: Dmin | B5: =Vcore_HFM/Vin_max -> 0.06428571429
A6: Iin_DC_at_Dmin | B6: =(Vcore_HFM*Icc_max)/(Vin_max*0.8) -> 3.294642857 | C6: A
A8: Inductor
A9: Inductor current ripple | B9: =(((Vin_max-Vcore_HFM)*(Vcore_HFM/(Freq*1000*Vin_max)))/L_chosen)*1000000 -> 6.37987013 | C9: A
A10: Inductor Saturation Current rating | B10: =(Icc_max_N+I_ripple/2)*1.2*1.25 -> 35.5349026 | C10: A
E11: Icl_Valley*L_DCR*(IF(B_NTC>4199,0.95,0.89))
A12: Over Current Limit
A13: Min. Over Current Limit (OCL) Target in single phase | B13: =(OCL_Tar/N_ph) -> 25 | C13: A
A14: Valley current limit | B14: =OCL_N-I_ripple/2 -> 21.81006494 | C14: A
A15: DCR * Valley current | B15: =Icl_Valley*L_DCR -> 6.324918831
A16: TRIPSEL voltage target | B16: =Icl_Valley*L_DCR*0.95 -> 6.00867289 | C16: mV
A17: TRIPSEL closest match | B17: =VLOOKUP(TRIPSEL,'Datasheet Parameters'!D4:D11,1,TRUE) -> 5.9 | C17: mV
A18: TRIPSEL Setting | B18: =VLOOKUP(TRIPSEL,'Datasheet Parameters'!D4:E11,2,TRUE) -> 24 | C18: kW
A20: DROOP
A21: Gain | B21: =(Acs*Rcs_eff)/(R_LL) -> 1.282587052
A24: Output capacitor
A25: Effective bulk Capacitor | B25: =Cout*nc+Ccerm*ncerm -> 900
A26: Effective ESR | B26: =(((ESR/nc)*(Cout*nc))+((2/ncerm)*(Ccerm*ncerm)))/(Cout*nc+Ccerm*ncerm) -> 3.333333333
A27: Effective ESL | B27: =ESL/nc -> 0.5
A28: Load resistance for Bode Plot | B28: =Vcore_HFM/I_load -> 
A32: Input Capacitors
A33: RMS Current_at_Dmin | B33: =SQRT(((Icc_max-(N_ph*Iin_DC))^2)*Dmin+(Iin_DC^2)*((1/N_ph)-Dmin)) -> 8.99166689
A34: Input Capacitor Current Rating | B34: 3
A35: Number of Input Capacitors | B35: =ROUNDUP(Irms_Cin/Irating_Cin,0) -> 3

Sheet DCR sense calculations
G2: Coming from other sheets
G3: Calculated in this sheet
C5: F | D5: =Freq*1000 -> 600000 | E5: Hz | I5: result | J5: target | L5: Vin(min) | M5: =Vin_min -> 10 | N5: V
C6: B:Rth | D6: =B_NTC -> 3380 | E6: K | H6: V Slope | I6: =SLOPE($K$27:$K$44,$A$27:$A$44) -> 5.342089279e-07 | J6: 0 | L6: TRIPSELmin | M6: =TRIPSEL_V -> 5.9 | N6: mV
C7: Rth25 | D7: =RNTC_25C*1000 -> 10000 | E7: ohm | H7: Rcs_eff | I7: =INTERCEPT($K$27:$K$44,$A$27:$A$44) -> 0.2565174105 | J7: =Rcs_max*0.95 -> 0.2569914403 | L7: OCL Target | M7: =OCL_N -> 25 | N7: A/phase
C8: LDCR | D8: =L_DCR/1000 -> 0.00029 | E8: ohm | H8: Σ Sq. Err. | I8: =SUM($M$27:$M$44) -> 8.485313567e-05 | L8: Vcore | M8: =Vcore_HFM -> 0.9 | N8: V
C9: TCR_cu | D9: =TCR_Cu -> 0.0039 | E9: 3900ppm/degC | H9: RMSE | I9: =SQRT(I8/85) -> 0.0009991357187 | J9: 0.001 | L9: Ip-p | M9: =I_ripple -> 6.37987013 | N9: A
C10: Rsequ | D10: 1408.447151 | E10: ohm | L10: Ivalley | M10: =Icl_Valley -> 21.81006494 | N10: A
C11: Rseries | D11: 1727.72005 | E11: ohm | H11: Max | I11: =MAX($K$27:$K$44) -> 0.2592790711 | L11: Rcs(max) | M11: =(TRIPSEL_V/Icl_Valley) -> 0.2705173055 | N11: mΩ
C12: Rpar | D12: 1.911675993e+14 | E12: ohm | H12: Min | I12: =MIN($K$27:$K$44) -> 0.2512087679 | L12: Vcs_p-p | M12: =I_ripple*Rcs_eff -> 1.636547765 | N12: mV
C13: I | D13: 1 | E13: A | H13: R | I13: =ABS(I11-I12) -> 0.008070303173
C14: L | D14: =L_chosen*0.000001 -> 2.2e-07 | E14: H | H14: R% | I14: =I13/I7*100 -> 3.146103478 | L14: Rsequ_guess | M14: =D7*0.2 -> 2000
C15: Csense | D15: =D14/(D8*(I32*D10/(I32+D10))) -> 6.033081671e-07 | E15: F | L15: Rseries_guess | M15: 2000
C16: Rseqmin | D16: 1000 | L16: Rpar_guess | M16: =D7*2 -> 20000
A18: Temp | B18: B | C18: Rth | D18: R1 | E18: R2 | F18: R3 | G18: DCR | H18: V1 | I18: Rnet1 | J18: Rnet2 | K18: Vout | L18: Vapp | M18: SqrErr | O18: Loadline | P18: OCL | R18: LL Target | S18: OCL Target
A19: -40 | C19: =C20*(EXP($D$6*(A20-A19)/((A20+273)*(A19+273)))) -> 236687.5654 | D19: =$D$10 -> 1408.447151 | E19: =$D$11 -> 1727.72005 | F19: =$D$12 -> 1.911675993e+14 | G19: =G20*(1-$D$9)^5 -> 0.0002249516092 | H19: =G19*$D$13*1000 -> 0.2249516092 | I19: =(E19*F19+C19*F19)/(C19+E19+F19) -> 238415.2852 | J19: =D19+I19 -> 239823.7323 | K19: =I19*H19/J19 -> 0.2236305037 | L19: =A19*$I$6+$I$7 -> 0.2564960421 | M19: =(K19-L19)^2 -> 0.001080143616 | O19: =R_LL*K19/Rcs_eff -> 1.743589281 | P19: =((TRIPSEL_V/K19)+I_ripple/2)*N_ph -> 59.14548038 | R19: =R_LL -> 2 | S19: =OCL_N*N_ph -> 50
A20: -35 | C20: 174510.321 | D20: 1408.447151 | E20: 1727.72005 | F20: 1.911675993e+14 | G20: 0.000229389959 | H20: 0.229389959 | I20: 176238.0409 | J20: 177646.488 | K20: 0.2275712705 | L20: 0.2564987132 | M20: 0.0008367969423 | O20: 1.774314422 | P20: 58.23175801 | R20: 2 | S20: 50
A21: -30 | C21: 130290.7165 | D21: 1408.447151 | E21: 1727.72005 | F21: 1.911675993e+14 | G21: 0.0002339158785 | H21: 0.2339158785 | I21: 132018.4364 | J21: 133426.8836 | K21: 0.2314466748 | L21: 0.2565013842 | M21: 0.0006277384623 | O21: 1.804529949 | P21: 57.36353627 | R21: 2 | S21: 50
A22: -25 | C22: 98428.99958 | D22: 1408.447151 | E22: 1727.72005 | F22: 1.911675993e+14 | G22: 0.0002385310955 | H22: 0.2385310955 | I22: 100156.7196 | J22: 101565.1667 | K22: 0.2352232839 | L22: 0.2565040553 | M22: 0.0004528712311 | O22: 1.833975194 | P22: 56.54497201 | R22: 2 | S22: 50
A23: -20 | C23: 75187.65147 | D23: 1408.447151 | E23: 1727.72005 | F23: 1.911675993e+14 | G23: 0.0002432373719 | H23: 0.2432373719 | I23: 76915.37149 | J23: 78323.81864 | K23: 0.2388633898 | L23: 0.2565067263 | M23: 0.0003112873253 | O23: 1.86235616 | P23: 55.78049202 | R23: 2 | S23: 50
A24: -15 | C24: 58036.86474 | D24: 1408.447151 | E24: 1727.72005 | F24: 1.911675993e+14 | G24: 0.0002480365042 | H24: 0.2480365042 | I24: 59764.58477 | J24: 61173.03192 | K24: 0.2423257147 | L24: 0.2565093974 | M24: 0.0002011768533 | O24: 1.889351013 | P24: 55.074661 | R24: 2 | S24: 50
A25: -10 | C25: 45241.47436 | D25: 1408.447151 | E25: 1727.72005 | F25: 1.911675993e+14 | G25: 0.0002529303246 | H25: 0.2529303246 | I25: 46969.1944 | J25: 48377.64155 | K25: 0.2455666131 | L25: 0.2565120684 | M25: 0.0001198029921 | O25: 1.914619461 | P25: 54.43200495 | R25: 2 | S25: 50
A26: -5 | C26: 35596.36452 | D26: 1408.447151 | E26: 1727.72005 | F26: 1.911675993e+14 | G26: 0.0002579207012 | H26: 0.2579207012 | I26: 37324.08456 | J26: 38732.53171 | K26: 0.2485418235 | L26: 0.2565147395 | M26: 6.35673881e-05 | O26: 1.937816408 | P26: 53.85678903 | R26: 2 | S26: 50
A27: 0 | C27: 28254.58075 | D27: 1408.447151 | E27: 1727.72005 | F27: 1.911675993e+14 | G27: 0.0002630095392 | H27: 0.2630095392 | I27: 29982.30079 | J27: 31390.74794 | K27: 0.2512087679 | L27: 0.2565174105 | M27: 2.818168592e-05 | O27: 1.958609885 | P27: 53.35275287 | R27: 2 | S27: 50
A28: 5 | C28: 22614.16761 | D28: 1408.447151 | E28: 1727.72005 | F28: 1.911675993e+14 | G28: 0.0002681987812 | H28: 0.2681987812 | I28: 24341.88765 | J28: 25750.3348 | K28: 0.2535293094 | L28: 0.2565200815 | M28: 8.944717947e-06 | O28: 1.976702548 | P28: 52.92281235 | R28: 2 | S28: 50
A29: 10 | C29: 18242.72027 | D29: 1408.447151 | E29: 1727.72005 | F29: 1.911675993e+14 | G29: 0.0002734904082 | H29: 0.2734904082 | I29: 19970.44032 | J29: 21378.88747 | K29: 0.2554727827 | L29: 0.2565227526 | M29: 1.102436672e-06 | O29: 1.991855307 | P29: 52.56874345 | R29: 2 | S29: 50
A30: 15 | C30: 14826.47338 | D30: 1408.447151 | E30: 1727.72005 | F30: 1.911675993e+14 | G30: 0.0002788864402 | H30: 0.2788864402 | I30: 16554.19343 | J30: 17962.64058 | K30: 0.2570190087 | L30: 0.2565254236 | M30: 2.436262584e-07 | O30: 2.003910832 | P30: 52.29087126 | R30: 2 | S30: 50
A31: 20 | C31: =C32*(EXP($D$6*(A32-A31)/((A32+273)*(A31+273)))) -> 12135.55279 | D31: 1408.447151 | E31: 1727.72005 | F31: 1.911675993e+14 | G31: 0.0002843889373 | H31: 0.2843889373 | I31: 13863.27284 | J31: 15271.71999 | K31: 0.2581609297 | L31: 0.2565280947 | M31: 2.666150115e-06 | O31: 2.012814095 | P31: 52.08779354 | R31: 2 | S31: 50
A32: 25 | C32: =D7 -> 10000 | D32: 1408.447151 | E32: 1727.72005 | F32: 1.911675993e+14 | G32: =$D$8 -> 0.00029 | H32: 0.29 | I32: 11727.72005 | J32: 13136.1672 | K32: 0.2589064803 | L32: 0.2565307657 | M32: 5.644019711e-06 | O32: 2.01862696 | P32: 51.95617238 | R32: 2 | S32: 50
A33: 30 | C33: =C32/(EXP($D$6*(A33-A32)/((A33+273)*(A32+273)))) -> 8293.057553 | D33: 1408.447151 | E33: 1727.72005 | F33: 1.911675993e+14 | G33: =G32*(1+$D$9)^5 -> 0.0002956992814 | H33: 0.2956992814 | I33: 10020.7776 | J33: 11429.22475 | K33: 0.2592596436 | L33: 0.2565334368 | M33: 7.432203483e-06 | O33: 2.021380483 | P33: 51.89408838 | R33: 2 | S33: 50
A34: 35 | C34: =C33/(EXP($D$6*(A34-A33)/((A34+273)*(A33+273)))) -> 6919.40088 | D34: 1408.447151 | E34: 1727.72005 | F34: 1.911675993e+14 | G34: 0.000301510569 | H34: 0.301510569 | I34: 8647.12093 | J34: 10055.56808 | K34: 0.2592790711 | L34: 0.2565361078 | M34: 7.523847623e-06 | O34: 2.021531954 | P34: 51.89067804 | R34: 2 | S34: 50
A35: 40 | C35: 5806.774531 | D35: 1408.447151 | E35: 1727.72005 | F35: 1.911675993e+14 | G35: 0.000307436064 | H35: 0.307436064 | I35: 7534.494581 | J35: 8942.941732 | K35: 0.2590171588 | L35: 0.2565387789 | M35: 6.142366918e-06 | O35: 2.019489892 | P35: 51.93669755 | R35: 2 | S35: 50
A36: 45 | C36: 4899.994249 | D36: 1408.447151 | E36: 1727.72005 | F36: 1.911675993e+14 | G36: 0.000313478011 | H36: 0.313478011 | I36: 6627.714299 | J36: 8036.161449 | K36: 0.2585367042 | L36: 0.2565414499 | M36: 3.98103987e-06 | O36: 2.015743912 | P36: 52.02135858 | R36: 2 | S36: 50
A37: 50 | C37: 4156.608588 | D37: 1408.447151 | E37: 1727.72005 | F37: 1.911675993e+14 | G37: 0.0003196386985 | H37: 0.3196386985 | I37: 5884.328638 | J37: 7292.775789 | K37: 0.2579071676 | L37: 0.2565441209 | M37: 1.857896196e-06 | O37: 2.010835577 | P37: 52.13276684 | R37: 2 | S37: 50
A38: 55 | C38: 3543.735024 | D38: 1408.447151 | E38: 1727.72005 | F38: 1.911675993e+14 | G38: 0.0003259204602 | H38: 0.3259204602 | I38: 5271.455074 | J38: 6679.902225 | K38: 0.2572006305 | L38: 0.256546792 | M38: 4.27504738e-07 | O38: 2.00532689 | P38: 52.25845129 | R38: 2 | S38: 50
A39: 60 | C39: 3035.734375 | D39: 1408.447151 | E39: 1727.72005 | F39: 1.911675993e+14 | G39: 0.0003323256754 | H39: 0.3323256754 | I39: 4763.454425 | J39: 6171.901576 | K39: 0.2564879218 | L39: 0.256549463 | M39: 3.787320389e-09 | O39: 1.999770084 | P39: 52.38593512 | R39: 2 | S39: 50
A40: 65 | C40: 2612.488496 | D40: 1408.447151 | E40: 1727.72005 | F40: 1.911675993e+14 | G40: 0.0003388567703 | H40: 0.3388567703 | I40: 4340.208546 | J40: 5748.655697 | K40: 0.2558352992 | L40: 0.2565521341 | M40: 5.13852219e-07 | O40: 1.994681755 | P40: 52.50329421 | R40: 2 | S40: 50
A41: 70 | C41: 2258.115507 | D41: 1408.447151 | E41: 1727.72005 | F41: 1.911675993e+14 | G41: 0.0003455162188 | H41: 0.3455162188 | I41: 3985.835557 | J41: 5394.282708 | K41: 0.2553019382 | L41: 0.2565548051 | M41: 1.569675511e-06 | O41: 1.990523276 | P41: 52.59965241 | R41: 2 | S41: 50
A42: 75 | C42: 1960.004741 | D42: 1408.447151 | E42: 1727.72005 | F42: 1.911675993e+14 | G42: 0.0003523065435 | H42: 0.3523065435 | I42: 3687.724791 | J42: 5096.171941 | K42: 0.254938332 | L42: 0.2565574762 | M42: 2.621627887e-06 | O42: 1.987688333 | P42: 52.66557345 | R42: 2 | S42: 50
A43: 80 | C43: 1708.087008 | D43: 1408.447151 | E43: 1727.72005 | F43: 1.911675993e+14 | G43: 0.0003592303163 | H43: 0.3592303163 | I43: 3435.807058 | J43: 4844.254208 | K43: 0.2547855672 | L43: 0.2565601472 | M43: 3.14913433e-06 | O43: 1.986497265 | P43: 52.69332552 | R43: 2 | S43: 50
A44: 85 | C44: 1494.279268 | D44: 1408.447151 | E44: 1727.72005 | F44: 1.911675993e+14 | G44: 0.0003662901599 | H44: 0.3662901599 | I44: 3221.999318 | J44: 4630.446469 | K44: 0.2548753459 | L44: 0.2565628183 | M44: 2.847562955e-06 | O44: 1.987197246 | P44: 52.67701181 | R44: 2 | S44: 50
A45: 90 | C45: 1312.059421 | D45: 1408.447151 | E45: 1727.72005 | F45: 1.911675993e+14 | G45: 0.0003734887484 | H45: 0.3734887484 | I45: 3039.779471 | J45: 4448.226621 | K45: 0.2552305731 | L45: 0.2565654893 | M45: 1.782001161e-06 | O45: 1.989966861 | P45: 52.61257593 | R45: 2 | S45: 50
A46: 95 | C46: 1156.138789 | D46: 1408.447151 | E46: 1727.72005 | F46: 1.911675993e+14 | G46: 0.0003808288087 | H46: 0.3808288087 | I46: 2883.858839 | J46: 4292.30599 | K46: 0.2558663172 | L46: 0.2565681603 | M46: 4.925837812e-07 | O46: 1.994923594 | P46: 52.49770279 | R46: 2 | S46: 50
A47: 100 | C47: 1022.208428 | D47: 1408.447151 | E47: 1727.72005 | F47: 1.911675993e+14 | G47: 0.0003883131208 | H47: 0.3883131208 | I47: 2749.928478 | J47: 4158.375629 | K47: 0.2567909695 | L47: 0.2565708314 | M47: 4.846079699e-08 | O47: 2.002132869 | P47: 52.33164181 | R47: 2 | S47: 50
A48: 105 | C48: 906.7415277 | D48: 1408.447151 | E48: 1727.72005 | F48: 1.911675993e+14 | G48: 0.0003959445199 | H48: 0.3959445199 | I48: 2634.461578 | J48: 4042.908729 | K48: 0.2580074631 | L48: 0.2565735024 | M48: 2.056243209e-06 | O48: 2.011617555 | P48: 52.11498127 | R48: 2 | S48: 50
A49: 110 | C49: 806.8386957 | D49: 1408.447151 | E49: 1727.72005 | F49: 1.911675993e+14 | G49: 0.0004037258965 | H49: 0.4037258965 | I49: 2534.558746 | J49: 3943.005897 | K49: 0.2595144488 | L49: 0.2565761735 | M49: 8.63346201e-06 | O49: 2.023367134 | P49: 51.84940007 | R49: 2 | S49: 50
A50: 115 | C50: 720.1061984 | D50: 1408.447151 | E50: 1727.72005 | F50: 1.911675993e+14 | G50: 0.0004116601982 | H50: 0.4116601982 | I50: 2447.826248 | J50: 3856.273399 | K50: 0.2613073645 | L50: 0.2565788445 | M50: 2.235890069e-05 | O50: 2.037346034 | P50: 51.53741869 | R50: 2 | S50: 50
A51: 120 | C51: 644.5596682 | D51: 1408.447151 | E51: 1727.72005 | F51: 1.911675993e+14 | G51: 0.0004197504302 | H51: 0.4197504302 | I51: 2372.279718 | J51: 3780.726869 | K51: 0.2633793625 | L51: 0.2565815156 | M51: 4.621072219e-05 | O51: 2.053500867 | P51: 51.18216553 | R51: 2 | S51: 50
A52: 125 | C52: 578.547588 | D52: 1408.447151 | E52: 1727.72005 | F52: 1.911675993e+14 | G52: 0.0004279996571 | H52: 0.4279996571 | I52: 2306.267638 | J52: 3714.714789 | K52: 0.2657220849 | L52: 0.2565841866 | M52: 8.350118442e-05 | O52: 2.071766469 | P52: 50.78716885 | R52: 2 | S52: 50

Sheet Datasheet Parameters
A1: Datasheet Values | C1: Typ | D1: Min | E1: R-OCP
C2: mV | D2: mV | E2: kohm
A4: V_OCP | B4: Valley current limit OCP voltage set | C4: 4 | D4: 3.7 | E4: 20
C5: 8 | D5: 5.9 | E5: 24
C6: 13 | D6: 10.6 | E6: 30
C7: 19 | D7: 15.4 | E7: 39
C8: 25 | D8: 21.3 | E8: 56
C9: 32 | D9: 28.4 | E9: 75
C10: 40 | D10: 36.3 | E10: 100
C11: 49 | D11: 45 | E11: 150
A14: Acs | B14: Current Sense Amplifier Gain | C14: 10 | D14: V/V
A15: VREF | B15: Reference Voltage | C15: 1.7 | D15: V
A16: V_THRMSD | B16: Voltage at Thermal Shutdown due to THERM pin. | C16: 1.1 | D16: V
